bitfinex/quotes_ETHUSD_20220308
["timestamp","ask_amount","ask_price","bid_price","bid_amount"]
[1646745165130,0.9712,2563.8,2562.7,1.23211691]
[1646745165429,0.9712,2563.6,2563.2,1.01028529]
[1646745165629,0.07987583,2564.0,2563.2,1.01028529]
[1646745165830,0.9992,2563.8,2563.2,1.01028529]
[1646745166331,0.9992,2563.6,2563.2,1.01028529]
[1646745166733,0.9992,2563.8,2563.1,0.3]
[1646745166931,0.9992,2563.6,2562.9,2.25189]
[1646745167131,0.9992,2563.6,2562.9,1.95189]
[1646745167334,3.5,2563.5,2562.6,0.00109542]
[1646745167532,5.512017,2563.2,2562.3,0.00109542]
[1646745167777,5.512017,2563.2,2562.1,0.25]
[1646745167778,0.01278705,2562.6,2562.1,0.25]
[1646745167971,0.9992,2562.8,2561.9,0.00277811]
[1646745168171,9.3,2563.0,2561.9,0.00277811]
[1646745168172,0.9992,2562.4,2561.9,0.00277811]
[1646745168371,0.9992,2562.6,2561.9,0.00277811]
[1646745168770,0.9992,2562.5,2561.9,0.00277811]
[1646745168976,0.9992,2563.0,2562.1,0.90411626]
[1646745169377,0.9992,2563.0,2562.0,0.97751542]
[1646745169577,0.9992,2562.6,2562.0,0.00109542]
[1646745169776,0.9992,2562.9,2562.1,0.00109542]
[1646745169975,0.9992,2562.9,2562.1,0.97636]
[1646745170177,0.9992,2562.7,2561.9,2.25276]
[1646745170377,0.9992,2562.7,2561.8,5.224e-05]
[1646745170378,1.05913943,2562.2,2561.8,5.224e-05]
[1646745170780,15.49000793,2562.1,2561.8,5.224e-05]
[1646745170985,15.49000793,2562.1,2561.4,0.04419248]
[1646745170986,11.82,2561.5,2561.0,0.25278842]
[1646745171189,5.51236632,2561.2,2560.9,0.0084956]
[1646745171441,5.51236632,2561.2,2558.3,3.0]
[1646745171442,1.03333708,2559.6,2558.3,3.0]
[1646745171643,1.03333708,2559.6,2558.9,0.635489]
[1646745171828,11.80173552,2560.0,2558.9,0.635489]
[1646745172035,0.97731,2560.5,2559.3,3.0]
[1646745172230,0.9992,2560.5,2559.1,3.0]
[1646745172427,0.9992,2560.5,2558.9,0.8951762]
[1646745172626,3.8,2561.0,2558.9,0.8951762]
[1646745172627,0.9992,2560.1,2558.9,0.4096872]
[1646745172828,0.9992,2560.2,2559.0,3.0]
[1646745173030,0.91261001,2560.1,2559.1,1.48691587]
[1646745173228,0.3902,2560.7,2559.1,1.48691587]
[1646745173229,0.9992,2560.4,2559.8,0.3902]
[1646745173629,1.0203478,2561.1,2560.4,0.3902]
[1646745173832,1.95389,2561.6,2560.4,0.3902]
[1646745174030,0.5,2561.7,2560.6,3.3902]
[1646745174230,0.5,2561.7,2561.0,1.25648969]
[1646745174430,0.5,2561.7,2561.3,3.3902]
[1646745174634,0.4544,2563.0,2561.7,0.3902]
[1646745174635,0.3,2563.0,2561.7,0.3902]
[1646745174830,0.3,2563.0,2561.9,0.3902]
[1646745175030,3.5,2563.8,2562.3,0.3902]
[1646745175275,4.46787614,2563.8,2562.7,0.90080495]
[1646745175476,0.96787614,2563.8,2562.6,1.95308194]
[1646745175677,1.0,2563.2,2562.6,0.00109194]
[1646745175878,1.0,2563.2,2562.5,0.3]
[1646745176076,3.968,2563.7,2562.1,0.00109194]
[1646745176077,0.3902,2563.3,2562.1,0.00109194]
[1646745176283,11.82,2562.5,2561.5,0.25]
[1646745176578,3.5,2563.1,2562.1,0.94194074]
[1646745176779,4.5,2563.3,2562.3,0.00305178]
[1646745176979,1.0,2563.1,2562.3,0.00305178]
[1646745177282,17.32,2562.3,2561.9,0.05799251]
[1646745177479,17.32,2562.3,2561.5,0.25]
[1646745177480,11.82,2562.1,2561.5,0.25]
[1646745177682,11.82,2561.9,2561.5,0.25]
[1646745177878,1.0,2562.1,2561.1,0.05832413]
[1646745177879,1.11551643,2561.8,2561.1,0.05832413]
[1646745178080,1.0,2561.7,2561.5,0.09205629]
[1646745178679,5.5,2561.6,2561.0,0.013544]
[1646745178927,2.0251,2561.6,2561.0,0.013544]
[1646745179130,1.0,2561.5,2561.0,0.013544]
[1646745179329,1.3,2561.5,2561.0,0.013544]
[1646745179629,6.75399,2561.5,2561.0,0.013544]
[1646745179835,5.5,2561.4,2561.0,0.013544]
[1646745180032,5.968,2561.4,2561.0,0.013544]
[1646745180231,1.3,2561.1,2561.0,0.013544]
[1646745180431,1.0,2561.1,2561.0,0.013544]
[1646745180641,1.0,2561.4,2561.0,0.013544]
[1646745181233,2.0,2561.4,2561.0,0.013544]
[1646745181433,1.0,2561.3,2561.0,0.013544]
[1646745181932,1.4153,2561.6,2561.0,0.013544]
[1646745181933,1.0,2561.2,2561.0,0.013544]
[1646745182131,1.0251,2561.6,2561.0,0.013544]
[1646745182774,1.02721791,2561.6,2561.0,0.013544]
[1646745183075,1.32721791,2561.6,2561.0,0.630544]
[1646745183479,1.0,2561.2,2561.0,0.630544]
[1646745183680,0.27564819,2561.2,2561.0,0.630544]
[1646745184081,1.27564819,2561.2,2561.0,0.630544]
[1646745184280,1.0,2561.2,2561.0,0.630544]
[1646745184481,1.0,2561.5,2561.0,0.630544]
[1646745184681,0.02044759,2561.3,2561.0,0.630544]
[1646745185480,0.02044759,2561.3,2561.2,0.617]
[1646745186081,0.02068367,2561.4,2561.3,6.117]
[1646745186524,1.02983949,2561.6,2561.3,9.5072]
[1646745186724,1.02983949,2561.6,2561.5,1.0072]
[1646745186925,1.02983949,2561.6,2561.5,2.02187973]
[1646745187330,1.0251,2561.6,2561.5,0.617]
[1646745188929,2.0251,2561.6,2561.5,0.617]
[1646745189131,2.0251,2561.6,2561.5,0.567]
[1646745189934,5.5,2561.5,2561.4,0.00443471]
[1646745190215,5.5,2561.5,2561.4,0.00447374]
[1646745190216,9.0,2561.5,2561.4,0.00447374]
[1646745190495,18.77415,2561.4,2561.0,10.013544]
[1646745190699,1.0,2561.1,2561.0,10.013544]
[1646745190895,1.3,2561.1,2561.0,0.013544]
[1646745191302,2.0,2561.1,2561.0,0.013544]
[1646745191503,1.0,2561.1,2561.0,0.013544]
[1646745191701,11.82,2561.6,2561.0,0.013544]
[1646745191899,1.0,2561.4,2561.0,0.013544]
[1646745192402,1.0,2561.7,2561.1,0.3902]
[1646745192706,1.0,2561.7,2561.2,0.3902]
[1646745192901,0.0001,2561.7,2561.2,0.8582]
[1646745193100,3.05973307,2562.3,2561.4,3.3902]
[1646745193302,3.05973307,2562.3,2562.0,1.1362925]
[1646745193502,3.05973307,2562.3,2561.5,0.00108797]
[1646745193699,3.05973307,2562.3,2561.4,0.468]
[1646745194125,1.9528,2562.8,2561.5,0.3902]
[1646745194126,1.0,2562.6,2561.5,0.3902]
[1646745194325,3.343,2562.8,2561.5,0.00108797]
[1646745194528,3.343,2562.8,2561.6,0.00108797]
[1646745194725,1.0,2562.6,2561.5,0.3]
[1646745194925,0.00503058,2562.2,2561.6,0.00108797]
[1646745195129,0.00503058,2562.2,2561.4,0.46908797]
[1646745195327,0.00503058,2562.2,2561.4,0.468]
[1646745195528,0.00503058,2562.2,2561.7,1.09337484]
[1646745195924,3.343,2562.8,2561.7,1.09337484]
[1646745196127,0.00503087,2561.9,2561.7,1.09337484]
[1646745196327,0.00503087,2561.9,2561.7,1.09446281]
[1646745196527,0.00503087,2561.9,2561.7,1.09337484]
[1646745197129,0.9763,2562.7,2561.7,1.09337484]
[1646745197328,1.95248,2563.1,2562.1,0.94539555]
[1646745197528,0.5,2563.2,2562.2,3.8902]
[1646745197802,0.5,2563.2,2562.1,4.00371968]
[1646745197803,0.5,2563.2,2562.1,1.30371968]
[1646745197996,1.0,2563.6,2562.1,1.30371968]
[1646745198191,0.97617,2563.1,2562.2,0.00108797]
[1646745198391,1.08933216,2563.3,2562.1,1.00371968]
[1646745198392,0.00212252,2562.8,2562.1,1.00371968]
[1646745198590,0.00212252,2562.8,2562.1,1.00480765]
[1646745198791,0.00212252,2562.8,2562.1,1.00371968]
[1646745199196,0.00212252,2562.8,2562.2,1.98478044]
[1646745199404,1.95224,2563.4,2562.6,0.97773599]
[1646745199696,1.95224,2563.4,2562.5,0.3]
[1646745199697,0.00212252,2562.6,2562.5,0.3]
[1646745200294,0.00212252,2562.6,2562.1,0.05832413]
[1646745200695,0.97615,2563.1,2562.2,1.59454027]
[1646745200897,0.00212252,2562.7,2562.3,1.03184666]
[1646745201095,0.00212252,2562.7,2562.2,1.59454027]
[1646745201096,0.00212252,2562.7,2562.2,0.3]
[1646745201298,0.00212252,2562.7,2562.1,0.44852413]
[1646745201518,0.97624,2562.9,2562.3,4.0]
[1646745201720,0.97624,2562.9,2562.2,0.3]
[1646745202020,0.97624,2562.9,2562.1,0.44852413]
[1646745202021,0.5,2563.2,2562.3,1.59467008]
[1646745202220,0.5,2563.2,2562.1,0.44852413]
[1646745202419,0.5,2563.2,2562.2,1.59466964]
[1646745203022,0.5,2563.2,2562.5,0.87575559]
[1646745203420,0.00211627,2562.8,2562.5,0.87575559]
[1646745204222,1.47611,2563.2,2562.5,0.87575559]
[1646745204424,0.00211627,2562.8,2562.6,0.264]
[1646745205478,0.02339436,2563.1,2562.6,0.264]
[1646745205681,0.0050304,2562.8,2562.6,0.264]
[1646745205978,0.0050304,2562.8,2562.7,0.264]
[1646745206580,0.97619,2563.0,2562.7,0.264]
[1646745206779,0.02339436,2563.1,2562.7,0.264]
[1646745206979,0.02339436,2563.1,2562.6,0.92666363]
[1646745206980,0.00503034,2562.9,2562.8,0.264]
[1646745207981,0.02339436,2563.1,2562.8,0.264]
[1646745208186,0.00503023,2563.0,2562.8,0.264]
[1646745209028,0.02339436,2563.1,2562.8,0.264]
[1646745209228,0.02339436,2563.1,2562.9,0.264]
[1646745209429,0.00503017,2563.0,2562.9,0.264]
[1646745209631,1.00503017,2563.0,2562.9,0.264]
[1646745210028,2.00503017,2563.0,2562.9,0.264]
[1646745210230,2.00503017,2563.0,2562.1,0.05832413]
[1646745210231,2.0,2563.0,2562.1,0.05832413]
[1646745210427,2.0,2563.0,2562.2,0.264]
[1646745210428,1.0,2563.0,2562.2,0.264]
[1646745210628,2.12203225,2563.1,2562.2,0.264]
[1646745210629,0.98100035,2563.1,2562.2,0.264]
[1646745210831,1.0,2562.9,2562.2,0.264]
[1646745211728,0.00486078,2562.7,2562.2,0.264]
[1646745211928,0.00486078,2562.7,2562.2,0.26508797]
[1646745212130,0.00486078,2562.7,2562.2,0.264]
[1646745212529,0.00486078,2562.7,2562.3,0.264]
[1646745212778,1.0,2562.8,2562.3,0.264]
[1646745212976,1.00486071,2562.7,2562.3,0.264]
[1646745213176,1.0,2562.5,2562.3,0.264]
[1646745213577,5.69686649,2562.4,2562.3,0.264]
[1646745213777,6.69686649,2562.4,2562.3,0.264]
[1646745213979,5.5,2562.3,2561.8,0.96599134]
[1646745214181,3.5,2562.2,2561.8,0.96490337]
[1646745214379,1.0,2561.9,2561.8,0.96490337]
[1646745214580,1.0,2561.9,2561.5,0.00471934]
[1646745214979,1.0,2561.9,2561.1,0.96599134]
[1646745215180,1.2050693,2561.8,2561.3,0.96490337]
[1646745215483,1.2050693,2561.8,2561.5,0.00371877]
[1646745215884,5.5,2561.7,2561.0,0.013544]
[1646745216084,3.5,2561.6,2561.0,0.013544]
[1646745216282,2.8952693,2561.8,2561.0,0.013544]
[1646745216283,14.0250693,2561.8,2561.0,0.013544]
[1646745216542,1.0,2561.2,2561.0,0.013544]
[1646745216746,1.3,2561.2,2561.0,0.013544]
[1646745217041,0.91094334,2561.1,2561.0,0.013544]
[1646745217445,1.21094334,2561.1,2561.0,0.013544]
[1646745217642,0.3,2561.1,2561.0,0.013544]
[1646745218043,1.97702,2561.1,2561.0,0.013544]
[1646745218842,1.97702,2561.1,2560.1,0.00587868]
[1646745218843,17.7102,2561.0,2560.1,0.00587868]
[1646745219044,0.97734,2560.7,2560.1,0.00587868]
[1646745219246,1.0,2560.6,2560.1,0.00587868]
[1646745219444,1.0,2560.5,2560.1,0.00587868]
[1646745219848,0.91836884,2560.4,2560.1,0.00587868]
[1646745220046,2.93267,2560.3,2560.1,0.00587868]
[1646745220275,3.23267,2560.3,2560.1,0.00587868]
[1646745220475,1.0,2560.2,2560.1,0.00587868]
[1646745221279,0.97746,2560.2,2560.1,0.00587868]
[1646745222081,13.79746,2560.2,2560.1,0.00587868]
[1646745222279,2.27746,2560.2,2560.1,0.00587868]
[1646745222680,17.32,2560.1,2560.0,0.00503059]
[1646745222883,0.87521576,2559.4,2559.0,0.00808797]
[1646745223085,0.97767,2559.4,2559.0,0.007]
[1646745223481,1.0,2559.7,2559.5,0.7252157]
[1646745223684,1.0,2559.7,2559.0,0.007]
[1646745223685,5.5,2559.6,2559.0,0.007]
[1646745223939,20.25364,2559.5,2559.0,0.007]
[1646745224129,0.97799,2559.1,2559.0,0.007]
[1646745224529,0.97799,2559.1,2558.7,0.02549728]
[1646745224530,15.82,2559.0,2558.7,0.02549728]
[1646745224730,2.95196744,2559.0,2558.7,0.02549728]
[1646745224932,0.9781,2558.9,2558.7,0.02549728]
[1646745225130,3.91237,2558.9,2558.7,0.02549728]
[1646745225330,0.97789,2558.8,2558.7,0.02549728]
[1646745225530,0.97789,2558.8,2557.9,0.07238028]
[1646745225531,1.0,2558.7,2557.9,0.07238028]
[1646745225730,1.0,2558.7,2558.0,1.59723693]
[1646745226034,1.85595,2558.6,2558.0,1.59723693]
[1646745226233,0.97798,2558.5,2558.0,1.59723693]
[1646745226432,0.97798,2558.5,2558.2,0.00291048]
[1646745227031,2.9341808,2558.5,2558.2,0.00291048]
[1646745227230,2.9341808,2558.5,2558.0,0.01585732]
[1646745227431,8.2373236,2558.7,2558.0,0.01585732]
[1646745227432,1.0,2558.7,2558.0,0.01585732]
[1646745227672,0.52839996,2559.0,2558.0,0.06159084]
[1646745227872,1.0,2558.7,2558.0,0.06159084]
[1646745228272,0.13819996,2559.0,2558.3,1.02176152]
[1646745228474,1.0,2559.7,2558.3,1.02176152]
[1646745228677,1.0,2559.7,2558.3,1.06749504]
[1646745228880,4.14734168,2559.8,2558.3,1.06749504]
[1646745228881,1.0,2559.5,2558.3,1.06749504]
[1646745229080,1.72284168,2559.8,2558.4,1.59691974]
[1646745229578,0.97751,2559.5,2558.5,0.00103521]
[1646745229779,0.97751,2559.5,2558.4,0.04573352]
[1646745229981,1.36771,2559.5,2558.4,0.04573352]
[1646745230577,0.97751,2559.5,2558.8,0.89094852]
[1646745230979,0.97751,2559.5,2558.8,0.89576977]
[1646745231182,1.36764,2559.7,2558.8,0.89576977]
[1646745231922,1.36764,2559.7,2558.8,0.89094852]
[1646745232122,0.97744,2559.7,2559.1,0.004504]
[1646745232923,0.00450282,2559.8,2559.1,0.004504]
[1646745233123,0.97735,2560.0,2558.8,0.89198373]
[1646745233124,0.97735,2560.0,2558.9,0.468]
[1646745233325,3.8902,2559.9,2558.8,0.89198373]
[1646745233525,0.6,2560.0,2559.3,0.00450385]
[1646745233526,1.0,2559.5,2559.3,0.00450385]
[1646745233727,4.5,2559.4,2558.8,0.01801849]
[1646745234130,1.0,2559.4,2558.8,0.01801849]
[1646745234331,1.0,2559.1,2558.7,0.01854]
[1646745234730,2.207447,2559.4,2558.7,0.01854]
[1646745234932,0.5,2558.8,2558.7,0.01854]
[1646745235372,0.02750935,2559.5,2558.7,0.01854]
[1646745235775,0.02750935,2559.5,2558.8,0.94376747]
[1646745236376,0.02750935,2559.5,2558.7,0.31854]
[1646745236377,0.02750935,2559.5,2558.7,0.01854]
[1646745236378,0.97749,2559.4,2558.7,0.01854]
[1646745237178,1.95568,2559.2,2558.9,0.00474932]
[1646745237377,3.11542149,2559.2,2558.9,0.00474932]
[1646745237979,3.11542149,2559.2,2558.7,0.01854]
[1646745238279,3.11542149,2559.2,2558.9,0.00474932]
[1646745238677,1.95568,2559.2,2558.9,0.00474932]
[1646745239323,1.95568,2559.2,2558.7,0.01854]
[1646745239524,1.95568,2559.2,2558.9,0.00474346]
[1646745240127,2.04129687,2559.1,2558.9,0.00474346]
[1646745240327,2.34129687,2559.1,2558.9,0.00474346]
[1646745240524,1.0,2559.0,2558.7,0.01854]
[1646745240723,2.27779,2559.0,2558.9,0.00474346]
[1646745240924,0.97779,2559.0,2558.9,0.00474346]
[1646745241124,1.97779,2559.0,2558.9,0.00474346]
[1646745241526,2.97779,2559.0,2558.9,0.00474346]
[1646745241728,2.97779,2559.0,2558.7,0.01854]
[1646745241925,3.27779,2559.0,2558.8,0.00474358]
[1646745242126,1.0,2558.9,2558.8,0.00474358]
[1646745242325,1.3,2558.9,2558.8,0.00474358]
[1646745242797,1.3,2558.9,2558.7,0.01854]
[1646745242996,1.95579,2558.8,2558.7,0.01854]
[1646745243296,1.95579,2558.8,2558.7,0.02328408]
[1646745243695,2.95579,2558.8,2558.7,0.02328408]
[1646745244001,2.95579,2558.8,2558.7,0.01854]
[1646745244002,1.95579,2558.8,2558.7,0.01854]
[1646745245700,1.21679,2558.9,2558.7,0.01854]
[1646745245701,0.2389,2558.9,2558.7,0.01854]
[1646745246532,0.0275152,2559.0,2558.9,0.36030607]
[1646745246936,1.0051552,2559.0,2558.9,0.36030607]
[1646745247735,0.0275152,2559.0,2558.9,0.36030607]
[1646745248135,0.97749,2559.6,2558.9,0.36030607]
[1646745248339,0.0048391,2559.7,2559.0,4.3582]
[1646745248535,0.0048391,2559.7,2559.6,1.16660559]
[1646745249035,3.06083181,2560.4,2559.6,1.63460559]
[1646745249237,0.00468743,2559.7,2559.6,1.63460559]
[1646745249438,0.00468743,2559.7,2559.6,0.468]
[1646745250035,3.06083181,2560.4,2559.6,0.468]
[1646745250479,0.97719,2560.3,2559.8,1.21499819]
[1646745250882,1.219816,2560.7,2559.8,1.21499819]
[1646745251283,0.219816,2560.7,2559.8,1.21499819]
[1646745251493,0.00468709,2560.2,2559.9,4.3582]
[1646745251682,0.00468709,2560.2,2560.0,2.34359]
[1646745251882,0.00468709,2560.2,2560.1,4.3582]
[1646745252282,8.709e-05,2560.2,2560.1,12.6782]
[1646745252484,2.3184,2561.7,2560.2,0.00103298]
[1646745252783,2.3184,2561.7,2560.5,0.3902]
[1646745252983,7.29,2561.9,2560.7,0.3902]
[1646745253183,7.29,2561.9,2560.9,1.36662]
[1646745253385,7.29,2561.9,2560.9,1.66662]
[1646745253582,7.29,2561.9,2561.2,1.16921084]
[1646745253783,10.0,2562.0,2561.2,1.16921084]
[1646745254043,10.0,2562.0,2561.3,0.8582]
[1646745254245,10.0,2562.0,2561.3,1.83462]
[1646745254645,10.0,2562.0,2561.9,1.0085752]
[1646745254842,10.0,2562.0,2561.3,1.83462]
[1646745254843,10.0,2562.0,2561.8,0.3]
[1646745255043,10.0,2562.0,2561.7,2.4203945]
[1646745255244,0.00213717,2561.8,2561.7,0.468]
[1646745255446,0.00213717,2561.8,2561.7,1.01340337]
[1646745255846,0.00213717,2561.8,2561.7,1.9807045]
[1646745256046,10.0,2562.0,2561.7,1.9807045]
[1646745256246,10.0,2562.0,2561.7,2.3709045]
[1646745256448,10.0,2562.0,2561.8,0.93560337]
[1646745256449,0.00499749,2561.9,2561.8,0.93560337]
[1646745256647,0.00499749,2561.9,2561.8,1.40360337]
[1646745257251,10.0,2562.0,2561.8,1.01340337]
[1646745257447,10.0,2562.0,2561.8,1.98950577]
[1646745257675,10.00499738,2562.0,2561.8,1.98950577]
[1646745258275,0.97612,2563.2,2562.0,0.0049]
[1646745258476,0.570521,2563.3,2562.3,0.54540337]
[1646745258676,0.570521,2563.3,2562.3,1.01340337]
[1646745258879,0.41077929,2563.3,2562.3,1.01340337]
[1646745259080,0.41077929,2563.3,2562.7,0.54540337]
[1646745259280,0.41077929,2563.3,2563.2,1.45909991]
[1646745259480,0.01997929,2563.3,2563.2,1.45909991]
[1646745259680,3.5965,2564.2,2563.2,1.45909991]
[1646745259681,1.2153,2564.2,2563.2,1.92709991]
[1646745259883,1.0,2564.3,2563.2,1.92709991]
[1646745260082,0.0021368,2563.4,2563.2,1.01443635]
[1646745260284,0.0021368,2563.4,2563.2,1.01340337]
[1646745260485,0.0021368,2563.4,2563.2,0.54540337]
[1646745260684,0.0021368,2563.4,2563.3,0.54540337]
[1646745260892,0.9759686,2564.2,2563.3,0.54540337]
[1646745261086,1.00784583,2563.4,2563.3,0.54540337]
[1646745261287,0.17172616,2563.4,2563.3,0.54540337]
[1646745261529,1.17172616,2563.4,2563.3,0.41362516]
[1646745261724,0.17172616,2563.4,2563.3,0.41362516]
[1646745261930,3.5,2563.3,2562.4,0.27373466]
[1646745262130,3.5,2563.2,2562.4,0.27373466]
[1646745262329,1.0,2562.8,2562.4,0.27270168]
[1646745262729,2.11923488,2563.3,2562.0,0.27270168]
[1646745263127,2.11923488,2563.3,2562.1,0.00103298]
[1646745263328,1.0,2563.4,2562.3,0.27270168]
[1646745263530,0.16687488,2563.6,2562.5,0.27270168]
[1646745263531,0.00485197,2562.8,2562.5,0.27270168]
[1646745263728,0.00485197,2562.8,2562.0,2.1563352]
[1646745263729,0.00485197,2562.8,2562.7,1.22042042]
[1646745263933,0.00485197,2562.8,2562.7,1.9611221]
[1646745264128,0.00485197,2562.8,2562.7,0.74070168]
[1646745264530,0.97602,2563.5,2562.7,0.74070168]
[1646745264730,0.97602,2563.5,2562.8,0.27270168]
[1646745264932,0.00468863,2562.9,2562.8,0.27270168]
[1646745265798,0.97616,2563.1,2562.9,0.27270168]
[1646745265994,1.0,2563.6,2562.9,0.27270168]
[1646745266194,0.00468853,2563.0,2562.9,0.27270168]
[1646745266895,0.99477131,2563.4,2562.9,0.27270168]
[1646745266896,0.97602,2563.4,2562.9,0.27270168]
[1646745267099,1.95207,2563.6,2562.9,1.41455665]
[1646745267300,0.00468555,2563.1,2562.9,1.41455665]
[1646745268103,0.8213,2563.8,2562.9,1.41455665]
[1646745268302,0.8213,2563.8,2563.0,0.27270168]
[1646745268502,0.8213,2563.8,2563.2,0.27270168]
[1646745268925,0.8213,2563.8,2563.4,0.27270168]
[1646745269630,0.8213,2563.8,2563.3,0.27270168]
[1646745270631,4.3213,2563.8,2563.3,0.27270168]
[1646745270835,0.00469312,2563.7,2563.3,0.27270168]
[1646745271336,0.98056312,2563.7,2563.3,0.27270168]
[1646745271732,1.97587,2563.7,2563.3,0.27270168]
[1646745271931,1.98227596,2563.6,2563.3,0.27270168]
[1646745272131,1.98709783,2563.6,2563.3,0.27270168]
[1646745272332,1.95206,2563.5,2563.3,0.27270168]
[1646745272691,6.0,2563.4,2562.7,0.00103298]
[1646745272883,6.3902,2563.4,2562.4,0.00103298]
[1646745273084,6.3902,2563.4,2562.2,0.25103298]
[1646745273281,6.3902,2563.4,2561.7,3.7712]
[1646745273282,0.3902,2562.9,2561.9,0.00103298]
[1646745273482,1.0,2563.1,2561.8,3.50103298]
[1646745273483,1.3902,2562.7,2561.8,3.50103298]
[1646745273686,1.0,2562.7,2561.9,1.15827788]
[1646745273883,0.97635,2562.6,2561.9,1.15827788]
[1646745274284,0.97635,2562.6,2561.8,0.00103298]
[1646745274484,0.97635,2562.6,2561.7,0.97628]
[1646745274883,0.97635,2562.6,2561.7,1.95259]
[1646745275487,0.97635,2562.6,2561.8,0.97171986]
[1646745275684,0.00481172,2562.3,2561.8,0.97171986]
[1646745275887,0.00481172,2562.3,2561.7,2.25259]
[1646745276624,1.36655,2562.6,2561.7,0.97628]
[1646745276835,1.9527,2562.7,2561.5,0.00103298]
[1646745276836,0.97653,2562.0,2561.5,0.00103298]
[1646745277028,0.97653,2562.0,2561.1,0.00103298]
[1646745277328,0.97653,2562.0,2561.1,1.47837323]
[1646745277526,0.97653,2562.0,2561.1,4.97837323]
[1646745278134,0.97653,2562.0,2561.1,1.47837323]
[1646745278331,0.97653,2562.0,2561.1,4.97837323]
[1646745278529,0.0048115,2562.1,2561.2,0.8582]
[1646745278730,0.0048115,2562.1,2561.3,5.73210854]
[1646745278929,0.0048115,2562.1,2561.4,0.468]
[1646745279132,0.0048115,2562.1,2561.9,3.11289553]
[1646745279332,0.0046827,2562.1,2561.9,3.41289553]
[1646745280285,0.97622,2562.8,2562.1,0.97622]
[1646745280886,1.14358945,2562.8,2561.8,0.00103298]
[1646745281089,1.14358945,2562.8,2561.1,2.92866]
[1646745281090,1.3668,2562.5,2561.6,0.00103298]
[1646745281288,1.3668,2562.5,2561.4,0.00103298]
[1646745281289,2.0,2562.1,2561.4,0.00103298]
[1646745281487,2.3902,2562.1,2561.2,0.00103298]
[1646745281685,1.0,2562.0,2561.2,0.00103298]
[1646745281884,1.0,2562.0,2561.2,0.91201479]
[1646745282087,0.3902,2562.2,2561.2,0.91201479]
[1646745282286,1.95289,2562.3,2561.2,0.91201479]
[1646745282486,1.95289,2562.3,2561.3,0.26054913]
[1646745282684,1.95289,2562.3,2561.5,0.9764]
[1646745282886,1.95289,2562.3,2561.3,0.26158211]
[1646745283086,1.95289,2562.3,2561.3,0.26054913]
[1646745283589,1.95267,2562.6,2561.3,0.65074913]
[1646745283786,1.95267,2562.6,2561.4,0.468]
[1646745284029,1.95267,2562.6,2561.6,0.22142313]
[1646745284230,1.95267,2562.6,2561.5,0.00103298]
[1646745284231,0.00470034,2562.1,2561.5,0.00103298]
[1646745284429,0.00470034,2562.1,2561.4,0.768]
[1646745284630,0.00470034,2562.1,2561.6,0.21343869]
[1646745284833,0.00470034,2562.1,2561.7,0.468]
[1646745285133,0.5,2563.4,2562.2,0.97591]
[1646745285334,0.5,2563.4,2562.4,0.27549657]
[1646745285335,0.01879379,2563.1,2562.4,0.27549657]
[1646745285534,0.01879379,2563.1,2562.6,1.04110154]
[1646745285737,0.01879379,2563.1,2562.1,0.0119651]
[1646745285938,0.01879379,2563.1,2562.1,0.01299808]
[1646745286234,1.0,2562.8,2562.1,0.0119651]
[1646745286433,1.0,2562.5,2562.1,0.0119651]
[1646745286636,1.0,2562.4,2562.1,0.0119651]
[1646745287233,0.97642,2562.5,2562.1,0.0119651]
[1646745287689,1.97642,2562.5,2562.1,0.0119651]
[1646745288084,1.0,2562.4,2562.1,0.0119651]
[1646745288884,0.91569607,2562.2,2562.1,0.0119651]
[1646745289487,2.89228607,2562.2,2562.1,0.0119651]
[1646745289684,6.85958723,2562.2,2562.1,6.51e-05]
[1646745289886,2.44389116,2562.2,2562.1,6.51e-05]
[1646745290087,5.94389116,2562.2,2562.1,6.51e-05]
[1646745290287,3.14389116,2562.2,2562.1,6.51e-05]
[1646745290686,3.99628728,2562.2,2562.1,6.51e-05]
[1646745290887,2.97659,2562.2,2562.1,6.51e-05]
[1646745291090,1.97659,2562.2,2562.1,6.51e-05]
[1646745291288,0.97659,2562.2,2562.1,6.51e-05]
[1646745292134,2.95813475,2562.3,2562.1,6.51e-05]
[1646745292135,0.00481475,2562.3,2562.1,6.51e-05]
[1646745292332,1.1301,2562.8,2562.1,6.51e-05]
[1646745292333,3.5,2562.5,2562.1,6.51e-05]
[1646745292533,0.00481475,2562.3,2562.1,6.51e-05]
[1646745293534,1.0,2562.6,2562.1,6.51e-05]
[1646745294334,0.97651,2562.2,2562.1,6.51e-05]
[1646745294734,0.97651,2562.2,2562.1,0.04410002]
[1646745294935,1.95302,2562.3,2562.1,0.04410002]
[1646745295582,5.45302,2562.3,2562.1,0.04410002]
[1646745295783,1.95302,2562.3,2562.1,0.04410002]
[1646745295983,1.0,2562.2,2562.1,0.04410002]
[1646745296183,1.95302,2562.3,2562.1,0.04410002]
[1646745296184,2.95302,2562.3,2562.1,0.04410002]
[1646745296387,6.45302,2562.3,2562.1,0.04410002]
[1646745296584,1.95302,2562.3,2562.1,0.04410002]
[1646745296882,2.95302,2562.3,2562.1,0.04410002]
[1646745297083,4.5,2562.2,2562.1,0.04410002]
[1646745297285,1.0,2562.2,2562.1,0.04410002]
[1646745297485,2.95783811,2562.3,2562.1,0.04410002]
[1646745298288,1.95315,2562.4,2562.1,0.04410002]
[1646745298289,1.0,2562.4,2562.1,0.04410002]
[1646745298487,0.00481811,2562.3,2562.1,0.04410002]
[1646745299534,3.11184,2562.9,2562.1,0.0576118]
[1646745299535,1.95254,2562.9,2562.1,0.0576118]
[1646745299735,0.00481811,2562.3,2562.1,0.0576118]
[1646745300736,0.97634,2562.5,2562.1,0.0576118]
[1646745300938,0.00467929,2562.3,2562.1,0.0576118]
[1646745301936,1.0,2562.9,2562.2,1.13634697]
[1646745302139,1.6404,2563.2,2562.2,2.11239697]
[1646745302441,0.00467929,2562.3,2562.2,2.58039697]
[1646745302696,0.00467929,2562.3,2562.2,3.49901737]